Cogmind - Beta 16 @@@ ROGUE MODE // 2025.11.24 @ 16:51:40 Player: ChromeKnight Result: Destroyed by 8T-C7I(z) with Zionite Laser-S Performance ------------- Evolutions (1) 500 Regions Visited (6) 1200 Robots Destroyed (65) 325 Value Destroyed (1487) 1487 Prototype IDs (7) 140 Alien Tech Used (0) 0 Bonus (694) 694 TOTAL SCORE: 4346 Bonus ------- Follower Combat Kills 37 Destroyed Z-Imprinter 1000 Friendly Fire -343 Cogmind --------- Core Integrity 0/400 Matter 168/300 Energy 325/325 System Corruption 0% Temperature Warm (106) Movement Walking (116) Location -7/Deep Caves Parts ------- > --- POWER (1) -------- Antimatter Reactor > --- PROPULSION (3) --- Zionite Composite Leg I Enhanced Flexi-carbon Leg Enhanced Flexi-carbon Leg > --- UTILITY (3) ------ High-capacity Storage Unit > --- WEAPON (2) ------- Heavy Assault Cannon > --- INVENTORY (20) --- Deuterium Engine Zionite Light DM Reactor Enhanced Flexi-carbon Leg Zionite Glidesys I Improved Flight Unit Improved Flight Unit Improved Flight Unit Improved Cooling System Structural Scanner Reaction Control System Reaction Control System Hacking Suite System Shield Phasing AFG Zionite Laser-S Plasma Cutter CR-A16's Pointy Stick Peak State ------------ > --- POWER ------------ Antimatter Reactor > --- PROPULSION ------- Zionite Composite Leg I Enhanced Flexi-carbon Leg Enhanced Flexi-carbon Leg > --- UTILITY ---------- High-capacity Storage Unit Zionite Heavy Carapace > --- WEAPON ----------- Heavy Assault Cannon > --- INVENTORY -------- Deuterium Engine Zionite Light DM Reactor Enhanced Flexi-carbon Leg Zionite Glidesys I Improved Flight Unit Improved Flight Unit Improved Flight Unit Improved Cooling System Structural Scanner Reaction Control System Reaction Control System Hacking Suite System Shield Phasing AFG Zionite Laser-S Heavy Assault Cannon Rocket Launcher Plasma Cutter CR-A16's Pointy Stick [Rating: 54] Favorites ----------- Power Deuterium Engine Engine Deuterium Engine Reactor Antimatter Reactor Propulsion Light Treads Treads Light Treads Leg Enhanced Flexi-carbon Leg Wheel Wheel Flight Unit Improved Flight Unit Utility High-capacity Storage Unit Device Heat Sink Storage High-capacity Storage Unit Protection Zionite Heavy Carapace Weapon Heavy Assault Cannon Energy Gun Improved EM Shotgun Energy Cannon Beam Cannon Ballistic Gun Assault Rifle Ballistic Cannon Heavy Assault Cannon Launcher Grenade Launcher Special Weapon Plasma Cutter Build | -11 -10 -10 -9 -9 -7 -7 ------- Run | Yrd Mat Min Mat Min Zio Dee Slots Evolved 2 | . . . 2 . . . Power . | . . . . . . . Propulsion 1 | . . . 1 . . . Utility 1 | . . . 1 . . . Weapon . | . . . . . . . Parts Attached 45 | 6 12 2 11 . 2 12 Power 5 | 1 1 . 1 . . 2 Engine 4 | 1 1 . 1 . . 1 Core . | . . . . . . . Reactor 1 | . . . . . . 1 Propulsion 12 | 2 2 1 4 . . 3 Treads 5 | 2 . . 3 . . . Leg 3 | . . . . . . 3 Wheel 3 | . 2 1 . . . . Hover . | . . . . . . . Flight 1 | . . . 1 . . . Utility 10 | 1 2 . 2 . 1 4 Device 6 | . 1 . 2 . 1 2 Storage 2 | 1 1 . . . . . Processor . | . . . . . . . Hackware . | . . . . . . . Protection 2 | . . . . . . 2 Artifact . | . . . . . . . Weapon 18 | 2 7 1 4 . 1 3 Energy Gun 7 | . 4 . 3 . . . Energy Cannon 1 | . 1 . . . . . Ballistic Gun 2 | 2 . . . . . . Ballistic Cannon 3 | . . . 1 . . 2 Launcher 4 | . 2 1 . . . 1 Special Weapon 1 | . . . . . 1 . Impact Weapon . | . . . . . . . Slashing Weapon . | . . . . . . . Piercing Weapon . | . . . . . . . Special Melee Weapon . | . . . . . . . Unidentified Prototypes 7 | . . . 2 . . 5 Parts Lost 12 | . 1 1 2 . . 8 Power 1 | . . . . . . 1 Propulsion 2 | . . 1 . . . 1 Utility 5 | . . . 1 . . 4 Weapon 4 | . 1 . 1 . . 2 Highest Loss Streak 6 | . 1 1 1 . . 6 To Critical Strikes . | . . . . . . . Average Backups 16 | . 15 13 16 18 17 16 Power 1 | . . 1 1 3 2 1 Propulsion 4 | . 4 5 6 7 4 3 Utility 4 | . 2 1 2 4 6 6 Weapon 5 | . 8 6 6 3 3 3 Tool/Special . | . . . . . . . Unused Backups 33 | . 1 . 13 . 5 14 Power 3 | . . . . . 1 2 Propulsion 10 | . . . 2 . 4 4 Utility 7 | . 1 . . . . 6 Weapon 13 | . . . 11 . . 2 Tool/Special . | . . . . . . . Average Slot Usage (%) 85 | . 91 95 88 77 86 76 Engine 11 | . 14 14 11 11 11 7 Treads 24 | . 16 3 25 33 33 21 Leg 1 | . . . . . . 6 Wheel 4 | . 11 20 7 . . . Device 14 | . 6 14 14 11 20 15 Storage 11 | . 14 14 11 11 11 11 Energy Gun 5 | . 9 28 14 . . . Energy Cannon 1 | . 8 . . . . . Ballistic Gun 2 | . 8 . . . . . Ballistic Cannon 6 | . . . 3 11 10 10 Peak Build Rating 54 | 6 11 10 21 19 25 54 Average Rating 19 | 4 8 9 16 19 23 27 On Entrance 12 | . 6 10 10 19 19 25 Avg Prop Armor Cover (%) 13 | . 11 13 18 7 . . Naked Turns . | . . . . . . . Heaviest Build 76 | 14 51 50 62 62 66 76 Greatest Support 80 | 40 40 20 60 60 60 80 Greatest Overweight (x) 5 | 2 5 4 5 1 1 2 Average Overweight (x) 2 | . 3 2 3 1 . 1 Largest Inventory Capacity 20 | 8 20 20 20 20 20 20 Average Capacity 19 | 6 18 20 20 20 20 20 Most Carried 20 | . 20 14 20 20 20 20 Average Carried 17 | . 15 13 16 20 19 18 Final Capacity 20 | 8 20 20 20 20 20 20 Final Carried 20 | . 14 13 20 20 20 17 Class Distribution -------------------- 96% | Mutant 3% | Scavenger-Mutant Dominant Class ---------------- Mutant | -10/Materials Mutant | -10/Mines Mutant | -9/Materials Mutant | -9/Mines Mutant | -7/Zion Mutant | -7/Deep Caves Resources | -11 -10 -10 -9 -9 -7 -7 ----------- Run | Yrd Mat Min Mat Min Zio Dee Matter Collected 1431 | 241 373 85 146 60 27 499 Remotely . | . . . . . . . Salvage Created 1810 | . 855 47 708 15 . 185 Parts 137 | . 68 10 43 6 . 10 Haulers Intercepted 5 | . 2 . 3 . . . Recyclers Shooed 2 | . 1 . 1 . . . Parts Field Recycled . | . . . . . . . Retrieved Matter . | . . . . . . . Parts Self-Destructed . | . . . . . . . Prevented . | . . . . . . . Parts Restored . | . . . . . . . Kills | -11 -10 -10 -9 -9 -7 -7 ------- Run | Yrd Mat Min Mat Min Zio Dee Combat Hostiles Destroyed 43 | . 20 7 9 3 . 4 Guns 13 | . 5 1 7 . . . Cannons 13 | . 5 . 1 3 . 4 AOE 16 | . 9 6 1 . . . Classes Destroyed 13 | . 8 2 1 . . 2 Worker 2 | . 1 . 1 . . . Builder 4 | . 4 . . . . . Tunneler 1 | . . 1 . . . . Hauler 5 | . 2 . 3 . . . Recycler 1 | . 1 . . . . . Operator 2 | . 1 . 1 . . . Watcher 5 | . 2 . 3 . . . Swarmer 15 | . 6 6 . 3 . . Grunt 20 | . 14 . 6 . . . Sentry 3 | . . . 3 . . . Demolisher 1 | . . 1 . . . . Z-Light 4 | . . . . . . 4 Fireman 2 | . . . . . . 2 Best Kill Streak 6 | . 6 4 5 3 . 3 Combat Bots Only 3 | . 3 3 3 3 . 3 Max Kills in Single Turn 4 | . 3 4 2 1 . 1 Gunslinging . | . . . . . . . Exploded 3 | . 2 3 1 . . . Melee . | . . . . . . . Uniques/NPCs Destroyed 1 | . . . . . . 1 Z-Imprinter (-7/Deep Caves) Combat | -11 -10 -10 -9 -9 -7 -7 -------- Run | Yrd Mat Min Mat Min Zio Dee Hostile Shots Fired 227 | . 77 10 32 13 . 95 Missed 69 | . 21 2 13 2 . 31 Hits 158 | . 56 8 19 11 . 64 Projectile 158 | . 56 8 19 11 . 64 AOE 6 | . . 6 . . . . Critical Strikes 1 | . 1 . . . . . Damage Taken 3199 | . 606 289 331 93 . 1880 Core 652 | . 150 75 25 . . 402 Absorbed by Shields . | . . . . . . . Regen/Repaired (Parts) 260 | . . . . . 260 . Core Remaining (%) 55 | 100 . 10 . . . . Volleys Fired 146 | . 67 6 31 6 . 36 Largest 2 | . 2 2 2 1 . 1 Hottest 100 | . 100 100 100 50 . 50 Shots Fired 222 | . 114 9 57 6 . 36 Gun 134 | . 76 6 52 . . . Cannon 75 | . 29 . 5 6 . 35 Launcher 13 | . 9 3 . . . 1 Special . | . . . . . . . Kinetic 94 | . 48 . 5 6 . 35 Thermal 61 | . 47 6 8 . . . Explosive 13 | . 9 3 . . . 1 Electromagnetic 54 | . 10 . 44 . . . Robot Hit Streak 8 | . 8 3 7 1 . 4 Robot Miss Streak 5 | . 5 1 5 2 . 2 Penetration Max . | . . . . . . . Secondary Targets . | . . . . . . . Shots Hit Robots 133 | . 68 5 41 2 . 17 Core Hits 102 | . 47 9 33 3 . 10 Critical Kills . | . . . . . . . Critical Parts Destroyed . | . . . . . . . Critical Strikes 3 | . . . . . . 3 Blast 3 | . . . . . . 3 Melee Attacks . | . . . . . . . Impact . | . . . . . . . Slashing . | . . . . . . . Piercing . | . . . . . . . Sneak Attacks . | . . . . . . . Combat Hostiles . | . . . . . . . Follow-up Attacks . | . . . . . . . Damage Inflicted 4222 | . 1598 317 843 184 . 1280 Guns 1363 | . 667 50 646 . . . Cannons 1642 | . 260 . 54 184 . 1144 Explosions 1208 | . 662 267 143 . . 136 Melee . | . . . . . . . Ramming 9 | . 9 . . . . . Kinetic 1810 | . 428 . 54 184 . 1144 Thermal 687 | . 443 50 194 . . . Explosive 1018 | . 615 267 . . . 136 Electromagnetic 698 | . 103 . 595 . . . Impact . | . . . . . . . Slashing . | . . . . . . . Piercing . | . . . . . . . Highest Corruption . | . . . . . . . Average Corruption . | . . . . . . . Corruption Purged . | . . . . . . . Corruption Blocked . | . . . . . . . Overload Shots . | . . . . . . . Overflow Damage 235 | . 7 . . . . 228 Projectiles 222 | . 7 . . . . 215 Explosions 13 | . . . . . . 13 Melee . | . . . . . . . Knockbacks 10 | . . . . . . 10 Impact . | . . . . . . . Kinetic 9 | . . . . . . 9 Secondary 1 | . . . . . . 1 Self-Inflicted Damage 115 | . 3 21 69 . . 22 Shots 5 | . 1 1 2 . . 1 Rammed 3 | . 3 . . . . . Targets Rammed 3 | . 3 . . . . . Kicked . | . . . . . . . Crushed . | . . . . . . . Highest Temperature 135 | . 135 . 74 . . 97 Average Temperature 32 | . 45 . 20 . . 17 Received Heat Transfer 1002 | . 306 . 120 . . 576 Siege Activations . | . . . . . . . Martial Activations . | . . . . . . . Shielding Activations . | . . . . . . . Robots Disrupted . | . . . . . . . Combat Hostiles . | . . . . . . . Robots Corrupted . | . . . . . . . Combat Hostiles . | . . . . . . . Parts Fried 4 | . . . 4 . . . Impact Corruptions . | . . . . . . . Robots Melted 1 | . 1 . . . . . Combat Hostiles 1 | . 1 . . . . . Parts Melted 1 | . 1 . . . . . Heat Transferred 1351 | . 905 148 298 . . . Parts Sabotaged . | . . . . . . . Parts Stolen . | . . . . . . . Parts Stripped . | . . . . . . . Power Chain Reactions 4 | . 1 . 3 . . . Alert | -11 -10 -10 -9 -9 -7 -7 ------- Run | Yrd Mat Min Mat Min Zio Dee Maximum Alert Level 1 | . 1 . . . . . Low Security (%) 73 | 100 47 100 100 100 . . Level 1 26 | . 52 . . . . . Level 2 . | . . . . . . . Level 3 . | . . . . . . . Level 4 . | . . . . . . . Level 5 . | . . . . . . . High Security . | . . . . . . . Max Security . | . . . . . . . Peak Influence 302 | . 302 177 148 64 . . Initial 110 | . . 110 61 4 . . Average 107 | . 160 114 64 10 . . Influence Increases 1288 | . 676 177 361 74 . . Destroy 0b10 Robot/C 780 | . 400 140 180 60 . . Destroy 0b10 Robot/NC 100 | . 55 5 40 . . . Destroy Leader 180 | . 88 20 62 10 . . Successful Hack 37 | . 22 . 15 . . . Disable Machine 90 | . 45 . 45 . . . Destroy Structure 86 | . 51 12 19 4 . . Lose Combat Pursuer 15 | . 15 . . . . . Influence Decreases 1288 | . 392 304 505 87 . . Entered New Map 279 | . . 174 96 9 . . Time Decay 960 | . 382 120 380 78 . . Lost Part 39 | . 10 10 19 . . . Lost Ally 10 | . . . 10 . . . Squads Dispatched 4 | . 4 . . . . . Investigation 3 | . 3 . . . . . Extermination . | . . . . . . . Reinforcement 1 | . 1 . . . . . Assault . | . . . . . . . Garrison . | . . . . . . . Intercept . | . . . . . . . Searches Triggered . | . . . . . . . Construction Impeded . | . . . . . . . Haulers Reinforced . | . . . . . . . Active Scanning Responses . | . . . . . . . Cargo Convoy Interrupts . | . . . . . . . Stealth | -11 -10 -10 -9 -9 -7 -7 --------- Run | Yrd Mat Min Mat Min Zio Dee Distress Signals 1 | . . . 1 . . . Communications Jammed . | . . . . . . . Distress Signals . | . . . . . . . Times Spotted 67 | . 31 8 13 3 . 12 Peak Tracking Total 5 | . 4 3 4 3 . 5 Tactical Retreats 2 | . 1 . . . . 1 Traps | -11 -10 -10 -9 -9 -7 -7 ------- Run | Yrd Mat Min Mat Min Zio Dee Traps Triggered 1 | . 1 . . . . . Indirectly . | . . . . . . . Trap Hack Attempts . | . . . . . . . Triggered . | . . . . . . . Disarmed . | . . . . . . . Reprogrammed . | . . . . . . . Reused 2 | . . . . . . 2 Traps Extracted . | . . . . . . . Installed 4 | . . . . . . 4 Triggered . | . . . . . . . Fabricated Traps 4 | . . . . . . 4 Most Traps Carried 2 | . . . . . . 2 Machines | -11 -10 -10 -9 -9 -7 -7 ---------- Run | Yrd Mat Min Mat Min Zio Dee Machines Disabled 9 | . 3 . 3 . 3 . Max in Single Turn 1 | . 1 . 1 . 1 . Machines Repaired . | . . . . . . . Machines Dismantled 3 | . . . . . 3 . Machines Sabotaged . | . . . . . . . Overloaded Fab Kills . | . . . . . . . Hacking | -11 -10 -10 -9 -9 -7 -7 --------- Run | Yrd Mat Min Mat Min Zio Dee Machines Accessed 9 | . 6 . 3 . . . Terminals 9 | . 6 . 3 . . . Fabricators . | . . . . . . . Repair Stations . | . . . . . . . Recycling Units . | . . . . . . . Scanalyzers . | . . . . . . . Garrison Access . | . . . . . . . Total Hacks 22 | . 18 . 4 . . . Successful 12 | . 9 . 3 . . . Failed 10 | . 9 . 1 . . . Catastrophic . | . . . . . . . Database Lockouts . | . . . . . . . Manual 17 | . 13 . 3 . 1 . Terminals 22 | . 18 . 4 . . . Fabricators . | . . . . . . . Repair Stations . | . . . . . . . Recycling Units . | . . . . . . . Scanalyzers . | . . . . . . . Garrison Access . | . . . . . . . Terminal Hacks 2 | . 2 . . . . . Robot Analysis 1 | . 1 . . . . . Locate Traps 1 | . 1 . . . . . Fabricator Hacks . | . . . . . . . Repair Station Hacks . | . . . . . . . Recycling Unit Hacks . | . . . . . . . Scanalyzer . | . . . . . . . Garrison Access Hacks . | . . . . . . . Unauthorized Hacks 10 | . 7 . 3 . . . Terminals 10 | . 7 . 3 . . . Assimilate 1 | . 1 . . . . . Operators 1 | . 1 . . . . . Skim 8 | . 5 . 3 . . . Fabricators . | . . . . . . . Repair Stations . | . . . . . . . Recycling Units . | . . . . . . . Scanalyzers . | . . . . . . . Garrison Access . | . . . . . . . Data Cores Recovered 1 | . . . 1 . . . Used . | . . . . . . . Hacking Detections 5 | . 4 . 1 . . . Full Trace Events 2 | . 2 . . . . . Feedback Events . | . . . . . . . Feedback Blocked . | . . . . . . . Robot Schematics Acquired 3 | . . . . . 3 . Robots Built . | . . . . . . . Authchips . | . . . . . . . Time . | . . . . . . . Total Robot Build Rating . | . . . . . . . Part Schematics Acquired 14 | . . . . . 14 . Parts Built . | . . . . . . . Authchips . | . . . . . . . Time . | . . . . . . . Total Part Build Rating . | . . . . . . . Part Studies Acquired . | . . . . . . . Parts Repaired . | . . . . . . . Time . | . . . . . . . Parts Recycled . | . . . . . . . Recycled Matter . | . . . . . . . Retrieved Matter . | . . . . . . . Retrieved Components . | . . . . . . . Parts Scanalyzed . | . . . . . . . Part Schematics Acquired . | . . . . . . . Parts Damaged . | . . . . . . . Bothacking | -11 -10 -10 -9 -9 -7 -7 ------------ Run | Yrd Mat Min Mat Min Zio Dee Used RIF Installer . | . . . . . . . Robots Hacked . | . . . . . . . Non-combat . | . . . . . . . Combat . | . . . . . . . Robot Hacks Applied . | . . . . . . . Relay Couplers Released . | . . . . . . . Fabnet Peak Effective % . | . . . . . . . Robots Rewired . | . . . . . . . Allies Hacked . | . . . . . . . Hacks Repelled . | . . . . . . . Allies | -11 -10 -10 -9 -9 -7 -7 -------- Run | Yrd Mat Min Mat Min Zio Dee Total Allies 11 | . 1 . . 3 7 . Largest Group 10 | . 1 1 1 3 10 10 Highest-Rated Group 347 | . 10 9 9 40 347 347 Highest-Rated Ally 96 | . 10 9 9 16 96 96 Total Orders 3 | . 2 . . . . 1 STAY 1 | . 1 . . . . . ROAM 1 | . . . . . . 1 FOLLOW 1 | . 1 . . . . . Ally Attacks 92 | . . . . . . 92 Total Damage 1230 | . . . . . . 1230 Kills 11 | . . . . . . 11 Allies Corrupted 1 | . . . . . . 1 Allies Melted . | . . . . . . . Intel | -11 -10 -10 -9 -9 -7 -7 ------- Run | Yrd Mat Min Mat Min Zio Dee Active Infowar (turns) . | . . . . . . . Robot Analysis Total 1 | . 1 . . . . . Derelict Logs Recovered 3 | . . 1 . 1 1 . Drone Launches . | . . . . . . . Drone Recoveries . | . . . . . . . Exploration | -11 -10 -10 -9 -9 -7 -7 ------------- Run | Yrd Mat Min Mat Min Zio Dee Turns Passed 7286 | 64 1713 253 901 490 2319 1546 Spaces Moved 3145 | 42 845 167 424 197 920 550 Core 15 | 15 . . . . . . Treads 1743 | 27 156 . 120 197 920 323 Legs 227 | . . . . . . 227 Wheels 1160 | . 689 167 304 . . . Hover . | . . . . . . . Flight . | . . . . . . . Fastest Speed 50 | 50 140 110 110 240 160 116 Average Speed 196 | 133 149 123 174 240 238 227 Slowest Speed 260 | 160 240 140 240 240 240 260 Overloaded Moves . | . . . . . . . Propulsion Burnouts . | . . . . . . . Robots Hopped . | . . . . . . . Potential Cave-ins 6 | . . . . . . 6 Cave-ins Triggered . | . . . . . . . Exploration Rate (%) 49 | 4 98 54 34 33 84 42 Regions Visited 6 Branch Regions 4 Pre-discovered Areas 1 | . . 1 . . . . Known Exits Taken 1 | . . . 1 . . . Unknown Exits Taken 5 | 1 1 1 . 1 1 . Scrap Searched 4 | . . 1 . 1 2 . Spaces Dug 5 | . . . . . . 5 Terrain Destroyed 121 | . 64 12 18 4 . 23 Melee . | . . . . . . . Projectile 24 | . . . 3 4 . 17 AOE 97 | . 64 12 15 . . 6 Terrain Rammed . | . . . . . . . Walls Destroyed . | . . . . . . . Machines Disabled . | . . . . . . . Actions | -11 -10 -10 -9 -9 -7 -7 --------- Run | Yrd Mat Min Mat Min Zio Dee Total 3956 | 47 1180 202 535 206 992 794 Wait 465 | . 225 25 16 1 32 166 Move 3139 | 41 844 166 423 196 919 550 Hop . | . . . . . . . Pick Up 57 | . 18 . 27 1 4 7 Fast Attach 25 | 6 3 . 4 . 2 10 Attach 14 | . 1 1 5 . 1 6 Detach 5 | . 1 . 1 . 1 2 Swap 19 | . 11 4 3 1 . . Drop 52 | . 7 . 25 1 6 13 Fire 146 | . 67 6 31 6 . 36 Melee . | . . . . . . . Ram 1 | . 1 . . . . . Kick . | . . . . . . . Crush 2 | . 2 . . . . . Escape Stasis . | . . . . . . . Rewire . | . . . . . . . Trap 4 | . . . . . . 4 Miscellaneous 27 | . . . . . 27 . Route ------- -11/Scrapyard -10/Materials (discovered 5 exits: *Mat x3 / [*Min] / [*Sub]) -10/Mines -9/Materials -9/Mines (discovered 3 exits: [*Mat x2] / *Zio) -7/Zion (discovered 2 exits: [*Dee] / [*Pro]) -7/Deep Caves History --------- Turn | Location | Event 11 | -11/Scrapyard | Discovered new exit (range 15) 65 | -11/Scrapyard | Entered Materials 318 | -10/Materials | Build established: Mutant 475 | -10/Materials | Discovered new exit (range 11) 735 | -10/Materials | Discovered new exit (range 6) 1138 | -10/Materials | Discovered new exit (range 9) 1239 | -10/Materials | Discovered new exit (range 8) 1312 | -10/Materials | Core integrity fell below 50% 1483 | -10/Materials | Discovered new exit (range 7) 1778 | -10/Materials | Entered Mines 1778 | -10/Mines | Accompanied by 1 ally 1788 | -10/Mines | Assembled infested the area 1793 | -10/Mines | Assisted by a Guerilla fighting off Assembled 1826 | -10/Mines | Core integrity fell below 20% 1916 | -10/Mines | Learned location of Storage (-7) 1993 | -10/Mines | Learned location of 1 exit from Materials 1993 | -10/Mines | Discovered new exit (range 7) 2031 | -10/Mines | Entered Materials 2031 | -9/Materials | Accompanied by 1 ally 2031 | -9/Materials | Evolved 2 slots: Propulsion x1, Utility x1 2032 | -9/Materials | Identified exit to Mines 2932 | -9/Materials | Entered Mines 2939 | -9/Mines | Received a Rocket Launcher from a helpful Derelict 2942 | -9/Mines | Met a Derelict bent on vengeance 2985 | -9/Mines | Discovered new exit (range 9) 3087 | -9/Mines | A Derelict revealed a hidden shortcut to a safe place 3192 | -9/Mines | Discovered new exit (range 8) 3264 | -9/Mines | Learned location of 1 exit from Materials 3267 | -9/Mines | Assisted by bots powering up and referring to "LRC-V3" 3422 | -9/Mines | Entered Zion 3422 | -7/Zion | Accompanied by 3 allies 3523 | -7/Zion | Given A8's code to call for help 3528 | -7/Zion | Discovered new exit (range 14) 3768 | -7/Zion | Gained Derelict followers 3967 | -7/Zion | Found Prototype Device 4062 | -7/Zion | Found Prototype Device 4279 | -7/Zion | Found CR-A16's Pointy Stick 4484 | -7/Zion | Learned Factory stockpile data 4899 | -7/Zion | Given the Hacking Drone Bay 5223 | -7/Zion | Visited the Megawrench Repair Shop 5238 | -7/Zion | Megawrench repaired 7 parts 5646 | -7/Zion | Discovered new exit (range 5) 5649 | -7/Zion | Saw the warning signs outside the Deep Caves entrance 5674 | -7/Zion | Enhanced Grunt warped into view, answering call for help 5674 | -7/Zion | Enhanced Grunt warped into view, answering call for help 5741 | -7/Zion | Entered Deep Caves 5741 | -7/Deep Caves | Accompanied by 10 allies 5841 | -7/Deep Caves | Identified Bomb Factory No. 2 6248 | -7/Deep Caves | Lost 3 allies 6319 | -7/Deep Caves | Attacked by Z-Imprinter 6338 | -7/Deep Caves | Allies destroyed Z-Imprinter 6355 | -7/Deep Caves | Lost 3 allies 6681 | -7/Deep Caves | Z-Facility disabled 6728 | -7/Deep Caves | Core integrity fell below 50% 6754 | -7/Deep Caves | Lost 6 parts (1p1n3u1w) 7251 | -7/Deep Caves | Found Prototype Protection 7251 | -7/Deep Caves | Identified Zio. Heavy Carapace 7285 | -7/Deep Caves | Core integrity fell below 20% 7287 | -7/Deep Caves | Destroyed by 8T-C7I(z) with Zionite Laser-S Last Messages --------------- 07128_ Acquired Prototype Hover Unit. 07131_ Acquired Prototype Energy Gun. 07134_ Acquired Prototype Reactor. 07216_ Slug penetrates Wall. 07220_ Slug penetrates Earth. 07247_ Acquired Prototype Leg. 07247_ Identified Zio. Composite Leg I. 07251_ Acquired Prototype Protection. 07251_ Identified Zio. Heavy Carapace. 07273_ Dropped Hvy. Assault Cannon. 07273_ Zio. Heavy Carapace destroyed. 07278_ Destroyed Imp. Reaction Control System. 07279_ Rocket Launcher destroyed. 07281_ Destroyed Phase Shifter. 07281_ 4M-G7Q(z) suffers critical hit (Blast). 07281_ Destroyed Prototype Storage. 07281_ 4M-G7Q(z) knocked back. 07284_ Destroyed Prototype Hover Unit. 07284_ 3N-UPU(z) knocked back. 07286_ 0I-FVJ(z) destroyed. Map ----- +----------------------------------------------------+ | | | ?????????????????????????????????????????????????? | | ?????????????????????????????????????????????????? | | ?????????????????????????????????????????????????? | | ?????????????????????????????????????????????????? | | ???????????????????????????##??????#?????????????? | | ??????????????????????????? ###### ?????????????? | | ??????????????????????????? # ????????????? | | ?????????????????????????? ????????????? | | ?????????????????????????? ???????????? | | ?????????????????????????? ???????????? | | ?????????????????????????# ???????????? | | ????????????????????????? ??????????? | | ?????????????????????#### ??????????? | | ????????????????????## # ?????????? | | ????????????????????# ?????????? | | ????????????????????# # ?????????? | | ????????????????????##;## ?????????? | | ????????????????????## ## ?????????? | | ???????????????????## ??????????? | | ???????????????????# ??????????? | | ???????????????????# %! ?????????? | | ???????????????????##z]z!%z ????????? | | ???????????????????# % z = ??????? | | ???????????????????## ??????? | | ???????????????????# @ ?????? | | ???????????????????## ?????? | | ????????????????????###; ????? | | ??????????????????????#; ????? | | ??????????????????????### ??? | | ????????????????????????# """ | | ?????????????????????##### """ | | ????????????????????## ?# | | ????????????????????# ## | | ????????????????????# # " | | ???????????????????## " | | ??????????########## " | | ?????????? " | | ?????????# " | | ?????????? ! | | ?????????????####### *%= | | ???????????????????# | | ???????????????????### % | | ?????????????????????# = | | ?????????????????????## ! | | ??????????????????????# % == ! | | ??????????????????????# ###% "!# | | ??????????????????????## ###?#%% *%## | | ???????????????????????# #???##%"###### | | ???????????????????????## #######????## #????#### | +----------------------------------------------------+ Best States ------------- Heat Dissipation 55 Energy Generation 21 Energy Capacity 325 Matter Stores 300 Matter Capacity 300 Sight Range 16 Terrain Scan Density 10 Armor Coverage 1200 Evasion (%) 45 Recoil Reduction 3 Kinecelleration 30 Item Schematics ----------------- Gauss Cannon | -7/Zion | Archive IFF Parser | -7/Zion | Archive Imp. Medium Armor Plating | -7/Zion | Archive System Guard | -7/Zion | Archive System Restoration Module | -7/Zion | Archive Arm. Leg | -7/Zion | Archive Gatling Laser | -7/Zion | Archive Disruptor Cannon | -7/Zion | Archive Adv. Cooling System | -7/Zion | Archive Plasma Rifle | -7/Zion | Archive Imp. Proton Missile Launcher | -7/Zion | Archive Hvy. Rocket Launcher | -7/Zion | Archive Adv. ECM Suite | -7/Zion | Archive Thermic Laser | -7/Zion | Archive Robot Schematics ------------------ W-25 Informer | -7/Zion | Archive B-36 Bruiser | -7/Zion | Archive S-27 Virus | -7/Zion | Archive Fabricated ------------ Nothing Repaired ---------- Nothing Studied --------- None Alien Tech Used ----------------- None Achievements -------------- None Challenges ------------ None Game ------ Seed PoweredCommImmobilizer Manual? 0 Play Time 00:27:14 Cumulative 579.8 hours Start 2025.11.24 @ 16:01:12 End 2025.11.24 @ 16:51:40 Sessions 1 Manual Loads 0 Difficulty Rogue Special Mode None Game No. 913 Rogue 758 Adventurer 148 Explorer 7 Win Type - Total 28 Types 21/1/4/1/0/0/1/0/0/0 Lore% 81 Gallery% 84 Achievement% 72 Wizard Run 0 Options --------- Layout 1 ASCII 0 Keyboard 0 Movement Numpad Keybinds 0 Fullscreen 2 Font 24/Smallcaps Map View 50x35 Zoom Use 0% Tactical HUD 1 Map Filters NONE Filters NONE Steam 1 RUN: 816d5659-31d4-4442-bc7c-41d618423acf